fUST/lending_fUST_20240904
["ID","MTS","AMOUNT","RATE_DAILY","PERIOD"]
[337091299,1725420682208,-500.0,0.00029589,2]
[337091300,1725420682218,-500.0,0.00029589,2]
[337091301,1725420682228,-500.0,0.00029589,2]
[337091302,1725420682238,-500.0,0.00029589,2]
[337091303,1725420682249,-803.37,0.00029589,2]
[337091304,1725420682259,-500.0,0.00029589,2]
[337091305,1725420682271,-500.0,0.00029589,2]
[337091306,1725420682280,-606.86,0.00029589,2]
[337091307,1725420682289,-500.0,0.00029589,2]
[337091308,1725420682298,-500.0,0.00029589,2]
[337091309,1725420682308,-1132.32,0.00029589,2]
[337091310,1725420682318,-636.94,0.00029589,2]
[337091311,1725420682328,-500.0,0.00029589,2]
[337091312,1725420682338,-500.0,0.00029589,2]
[337091313,1725420682347,-5252.83,0.00029589,2]
[337091314,1725420682356,-576.63,0.00029589,2]
[337091315,1725420682366,-901.7,0.00029589,2]
[337091316,1725420682376,-500.0,0.00029589,2]
[337091317,1725420682595,-1751.72,0.00029589,2]
[337091318,1725420682605,-500.0,0.00029589,2]
[337091319,1725420682615,-500.0,0.00029589,2]
[337091320,1725420682625,-500.0,0.00029589,2]
[337091321,1725420682635,-1256.59,0.00029589,2]
[337091322,1725420682645,-500.0,0.00029589,2]
[337091323,1725420682654,-500.0,0.00029589,2]
[337091324,1725420682664,-1139.08,0.00029589,2]
[337091325,1725420682673,-500.0,0.00029589,2]
[337091326,1725420682682,-1745.83,0.00029589,2]
[337091327,1725420682691,-500.0,0.00029589,2]
[337091328,1725420682701,-500.0,0.00029589,2]
[337091329,1725420682711,-846.0420623,0.00029703,22]
[337091330,1725420682721,-3249.506,0.0002971,2]
[337091331,1725420682731,-150.351,0.0002971,2]
[337091332,1725420682741,-300.728,0.0002971,2]
[337091333,1725420682750,-153.6714867,0.00029726,2]
[337091334,1725420682760,-600.0,0.00029754,34]
[337091335,1725420682771,-500.0,0.00029863,2]
[337091336,1725420682780,-500.0,0.00029863,2]
[337091337,1725420682790,-500.0,0.00029863,2]
[337091338,1725420682800,-500.0,0.00029863,2]
[337091339,1725420682810,-500.0,0.00029863,2]
[337091340,1725420682819,-500.0,0.00029863,2]
[337091341,1725420682828,-500.0,0.00029863,2]
[337091342,1725420682838,-500.0,0.00029863,2]
[337091343,1725420682847,-637.24850237,0.00029863,2]
[337091344,1725420682856,-500.0,0.00029863,2]
[337091345,1725420682865,-500.0,0.00029863,2]
[337091346,1725420682875,-500.0,0.00029863,2]
[337091347,1725420682884,-500.0,0.00029863,2]
[337091348,1725420682894,-768.18,0.00029863,2]
[337091349,1725420682903,-500.0,0.00029863,2]
[337091350,1725420682913,-500.0,0.00029863,2]
[337091351,1725420682923,-500.0,0.00029863,2]
[337091352,1725420682932,-500.0,0.00029863,2]
[337091353,1725420682942,-500.0,0.00029863,2]
[337091354,1725420682951,-500.0,0.00029863,2]
[337091355,1725420682961,-500.0,0.00029863,2]
[337091356,1725420682971,-1082.29,0.00029863,2]
[337091357,1725420682980,-686.25,0.00029863,2]
[337091358,1725420682990,-680.2,0.00029863,2]
[337091359,1725420682999,-500.0,0.00029863,2]
[337091360,1725420683009,-500.0,0.00029863,2]
[337091361,1725420683018,-1000.0,0.00029863,60]
[337091362,1725420683028,-592.32,0.00029863,2]
[337091363,1725420683038,-500.0,0.00029863,2]
[337091364,1725420683048,-500.0,0.00029863,2]
[337091365,1725420683057,-674.32,0.00029863,2]
[337091366,1725420683067,-4019.26,0.00029863,2]
[337091367,1725420683076,-675.84,0.00029863,2]
[337091368,1725420683087,-500.0,0.00029863,2]
[337091369,1725420683096,-500.0,0.00029863,2]
[337091370,1725420683106,-500.0,0.00029863,2]
[337091371,1725420683116,-754.15,0.00029863,2]
[337091372,1725420683125,-500.0,0.00029863,2]
[337091373,1725420683135,-609.64,0.00029863,2]
[337091374,1725420683145,-500.0,0.00029863,2]
[337091375,1725420683154,-654.89,0.00029863,2]
[337091376,1725420683163,-500.0,0.00029863,2]
[337091377,1725420683173,-500.0,0.00029863,2]
[337091378,1725420683182,-511.88,0.00029863,2]
[337091379,1725420683191,-500.0,0.00029863,2]
[337091380,1725420683201,-500.0,0.00029863,2]
[337091381,1725420683324,-500.0,0.00029863,2]
[337091382,1725420683336,-500.0,0.00029863,2]
[337091383,1725420683347,-500.0,0.00029863,2]
[337091384,1725420683357,-731.93,0.00029863,2]
[337091385,1725420683367,-500.0,0.00029863,2]
[337091386,1725420683377,-555.67,0.00029863,2]
[337091387,1725420683599,-534.31,0.00029863,2]
[337091388,1725420683610,-2911.16,0.00029863,2]
[337091389,1725420683620,-500.0,0.00029863,2]
[337091390,1725420683631,-500.0,0.00029863,2]
[337091391,1725420683641,-500.0,0.00029863,2]
[337091392,1725420683652,-500.0,0.00029863,2]
[337091393,1725420683663,-500.0,0.00029863,2]
[337091394,1725420683674,-500.0,0.00029863,2]
[337091395,1725420683686,-500.0,0.00029863,2]
[337091396,1725420683697,-500.0,0.00029863,2]
[337091397,1725420683706,-1427.1,0.00029863,2]
[337091398,1725420683717,-500.0,0.00029863,2]
[337091399,1725420683727,-500.0,0.00029863,2]
[337091400,1725420683740,-500.0,0.00029863,2]
[337091401,1725420683751,-500.0,0.00029863,2]
[337091402,1725420683762,-500.0,0.00029863,2]
[337091403,1725420683773,-881.16,0.00029863,2]
[337091404,1725420683782,-500.0,0.00029863,2]
[337091405,1725420683791,-500.0,0.00029863,2]
[337091406,1725420683803,-706.4,0.00029863,2]
[337091407,1725420683812,-524.63,0.00029863,2]
[337091408,1725420683824,-500.0,0.00029863,2]
[337091409,1725420683835,-500.0,0.00029863,2]
[337091410,1725420683845,-500.0,0.00029863,2]
[337091411,1725420683855,-500.0,0.00029863,2]
[337091412,1725420683865,-500.0,0.00029863,2]
[337091413,1725420683874,-500.0,0.00029863,2]
[337091414,1725420683884,-500.0,0.00029863,2]
[337091415,1725420683894,-500.0,0.00029863,2]
[337091416,1725420683906,-2009.2,0.00029863,2]
[337091417,1725420683916,-695.98,0.00029863,2]
[337091418,1725420683928,-500.0,0.00029863,2]
[337091419,1725420683937,-896.76,0.00029863,2]
[337091420,1725420683947,-500.0,0.00029863,2]
[337091421,1725420683959,-1155.59,0.00029863,2]
[337091422,1725420683969,-521.69988838,0.00029863,2]
[337091423,1725420683978,-500.0,0.00029863,2]
[337091424,1725420683988,-592.51,0.00029863,2]
[337091425,1725420683997,-791.9,0.00029863,2]
[337091426,1725420684006,-547.68,0.00029863,2]
[337091427,1725420684016,-500.0,0.00029863,2]
[337091428,1725420684027,-500.0,0.00029863,2]
[337091429,1725420684038,-500.0,0.00029863,2]
[337091430,1725420684048,-500.0,0.00029863,2]
[337091431,1725420684059,-500.0,0.00029863,2]
[337091432,1725420684069,-642.42,0.00029863,2]
[337091433,1725420684080,-500.0,0.00029863,2]
[337091434,1725420684092,-1249.32,0.00029863,2]
[337091435,1725420684102,-500.0,0.00029863,2]
[337091436,1725420684112,-500.0,0.00029863,2]
[337091437,1725420684123,-500.0,0.00029863,2]
[337091438,1725420684133,-500.0,0.00029863,2]
[337091439,1725420684145,-2356.93,0.00029863,2]
[337091440,1725420684156,-639.56046017,0.00029863,2]
[337091441,1725420684167,-500.0,0.00029863,2]
[337091442,1725420684177,-500.0,0.00029863,2]
[337091443,1725420684188,-527.95726382,0.00029863,2]
[337091444,1725420684199,-500.0,0.00029863,2]
[337091445,1725420684209,-834.19,0.00029863,2]
[337091446,1725420684219,-500.0,0.00029863,2]
[337091447,1725420684230,-306.24031292,0.00029863,2]
[337091448,1725420684241,-500.0,0.00029863,2]
[337091449,1725420684250,-438.72464772,0.00029863,2]
[337091450,1725420684260,-500.0,0.00029863,2]
[337091451,1725420684271,-500.0,0.00029863,2]
[337091452,1725420684291,-958.5,0.00029863,2]
[337091453,1725420684302,-832.71,0.00029863,2]
[337091454,1725420684314,-396.1964065,0.00029863,2]
[337091455,1725420684325,-500.0,0.00029863,2]
[337091456,1725420684335,-652.3,0.00029863,2]
[337091457,1725420684344,-500.0,0.00029863,2]
[337091458,1725420684353,-901.33,0.00029863,2]
[337091459,1725420684366,-500.0,0.00029863,2]
[337091460,1725420684376,-1011.35,0.00029863,2]
[337091461,1725420684387,-2862.9,0.00029863,2]
[337091462,1725420684399,-2987.56,0.00029863,2]
[337091463,1725420684410,-500.0,0.00029863,2]
[337091464,1725420684419,-500.0,0.00029863,2]
[337091465,1725420684430,-3402.81,0.00029863,2]
[337091466,1725420684441,-1811.33,0.00029863,2]
[337091467,1725420684452,-500.0,0.00029863,2]
[337091468,1725420684463,-500.0,0.00029863,2]
[337091469,1725420684474,-612.22,0.00029863,2]
[337091470,1725420684487,-1243.1,0.00029863,2]
[337091471,1725420684496,-717.23,0.00029863,2]
[337091472,1725420684505,-4418.31,0.00029863,2]
[337091473,1725420684515,-500.0,0.00029863,2]
[337091474,1725420684525,-115684.14,0.00029863,2]
[337091475,1725420684534,-55826.22,0.00029863,2]
[337091476,1725420684544,-500.0,0.00029863,2]
[337091477,1725420684554,-500.0,0.00029863,2]
[337091478,1725420684564,-500.0,0.00029863,2]
[337091479,1725420684573,-500.0,0.00029863,2]
[337091480,1725420684582,-500.0,0.00029863,2]
[337091481,1725420684592,-6301.07,0.00029863,2]
[337091482,1725420684602,-26324.52,0.00029863,2]
[337091483,1725420684611,-636.47,0.00029863,2]
[337091484,1725420684622,-500.0,0.00029863,2]
[337091485,1725420684631,-1916.51,0.00029863,2]
[337091486,1725420684641,-500.0,0.00029863,2]
[337091487,1725420684651,-500.0,0.00029863,2]
[337091488,1725420684660,-823.36,0.00029863,2]
[337091489,1725420684670,-1701.17,0.00029863,2]
[337091490,1725420684684,-729.84,0.00029863,2]
[337091491,1725420684701,-500.0,0.00029863,2]
[337091492,1725420684717,-500.0,0.00029863,2]
[337091493,1725420684731,-712.75,0.00029863,2]
[337091494,1725420684746,-500.0,0.00029863,2]
[337091495,1725420684762,-500.0,0.00029863,2]
[337091496,1725420684778,-500.0,0.00029863,2]
[337091497,1725420684794,-523.44171142,0.00029863,2]
[337091498,1725420684809,-1160.46,0.00029863,2]
[337091499,1725420684824,-1329.1,0.00029863,2]
[337091500,1725420684839,-500.0,0.00029863,2]
[337091501,1725420684855,-2729.74,0.00029863,2]
[337091502,1725420684868,-1898.01,0.00029863,2]
[337091503,1725420684882,-500.0,0.00029863,2]
[337091504,1725420684896,-500.0,0.00029863,2]
[337091505,1725420684912,-2159.38,0.00029863,2]
[337091506,1725420684927,-1592.01,0.00029863,2]
[337091507,1725420684943,-500.0,0.00029863,2]
[337091508,1725420684957,-6188.78,0.00029863,2]
[337091509,1725420684968,-1529.25,0.00029863,2]
[337091510,1725420684980,-4210.31,0.00029863,2]
[337091511,1725420684996,-729.82,0.00029863,2]
[337091512,1725420685011,-10461.88,0.00029863,2]
[337091513,1725420685027,-500.0,0.00029863,2]
[337091514,1725420685042,-1280.26,0.00029863,2]
[337091515,1725420685057,-1560.58,0.00029863,2]
[337091516,1725420685070,-7136.97,0.00029863,2]
[337091517,1725420685084,-500.0,0.00029863,2]
[337091518,1725420685098,-1328.68,0.00029863,2]
[337091519,1725420685111,-929.51,0.00029863,2]
[337091520,1725420685124,-3077.96,0.00029863,2]
[337091521,1725420685137,-683.0,0.00029863,2]
[337091522,1725420685150,-500.0,0.00029863,2]
[337091523,1725420685162,-11939.04,0.00029863,2]
[337091524,1725420685175,-500.0,0.00029863,2]
[337091525,1725420685189,-1259.14,0.00029863,2]
[337091526,1725420685202,-13600.34,0.00029863,2]
[337091527,1725420685214,-1182.99,0.00029863,2]
[337091528,1725420685227,-500.0,0.00029863,2]
[337091529,1725420685239,-1155.31,0.00029863,2]
[337091530,1725420685251,-851.0,0.00029863,2]
[337091531,1725420685263,-500.0,0.00029863,2]
[337091532,1725420685275,-1763.89,0.00029863,2]
[337091533,1725420685287,-500.0,0.00029863,2]
[337091534,1725420685300,-756.04,0.00029863,2]
[337091535,1725420685312,-652.71,0.00029863,2]
[337091536,1725420685327,-647.88,0.00029863,2]
[337091537,1725420685339,-517.20574267,0.00029863,2]
[337091538,1725420685352,-4853.04,0.00029863,2]
[337091539,1725420685364,-963.22,0.00029863,2]
[337091540,1725420685376,-500.0,0.00029863,2]
[337091541,1725420685390,-1079.72,0.00029863,2]
[337091542,1725420685403,-560.14695992,0.00029863,2]
[337091543,1725420685416,-500.0,0.00029863,2]
[337091544,1725420685429,-500.0,0.00029863,2]
[337091545,1725420685441,-394.11408397,0.00029863,2]
[337091546,1725420685454,-500.0,0.00029863,2]
[337091547,1725420685467,-803.37,0.00029863,2]
[337091548,1725420685480,-500.0,0.00029863,2]
[337091549,1725420685491,-500.0,0.00029863,2]
[337091550,1725420685503,-606.86,0.00029863,2]
[337091551,1725420685516,-500.0,0.00029863,2]
[337091552,1725420685529,-500.0,0.00029863,2]
[337091553,1725420685541,-1132.32,0.00029863,2]
[337091554,1725420685556,-636.94,0.00029863,2]
[337091555,1725420685571,-500.0,0.00029863,2]
[337091556,1725420685583,-500.0,0.00029863,2]
[337091557,1725420685595,-5252.83,0.00029863,2]
[337091558,1725420685608,-576.63,0.00029863,2]
[337091559,1725420685621,-901.7,0.00029863,2]
[337091560,1725420685635,-500.0,0.00029863,2]
[337091561,1725420685648,-1751.72,0.00029863,2]
[337091562,1725420685660,-500.0,0.00029863,2]
[337091563,1725420685674,-500.0,0.00029863,2]
[337091564,1725420685687,-500.0,0.00029863,2]
[337091565,1725420685700,-1256.59,0.00029863,2]
[337091566,1725420685713,-500.0,0.00029863,2]
[337091567,1725420685726,-500.0,0.00029863,2]
[337091568,1725420685739,-1139.08,0.00029863,2]
[337091569,1725420685752,-500.0,0.00029863,2]
[337091570,1725420685766,-1745.83,0.00029863,2]
[337091571,1725420685779,-371.07328448,0.00029863,2]
[337091572,1725420685792,-500.0,0.00029863,2]
[337091573,1725420685805,-1664.813552,0.00029894,2]
[337091574,1725420685819,-250.7,0.000299,2]
[337091575,1725420685832,-200.0,0.000299,2]
[337091576,1725420685846,-500.0,0.00029946,5]
[337091577,1725420685859,-530.72255491,0.00029946,5]
[337091578,1725420685871,-501.36411391,0.00029946,5]
[337091579,1725420685884,-501.84631074,0.00029946,5]
[337091580,1725420685896,-500.0,0.00029946,5]
[337091581,1725420685908,-202.98794253,0.00029946,3]
[337091582,1725420685920,-500.0,0.00029946,5]
[337091583,1725420685933,-766.42735897,0.00029992,2]
[337091584,1725420685946,-500.0,0.0003,2]
[337091585,1725420685959,-300.0,0.0003,60]
[337091586,1725420685971,-417.755197,0.00030081,2]
[337091587,1725420685983,-202.994073,0.00030081,2]
[337091588,1725420685995,-234.03441,0.00030081,2]
[337091589,1725420686010,-500.0,0.00030136,2]
[337091590,1725420686024,-500.0,0.00030136,2]
[337091591,1725420686037,-500.0,0.00030136,2]
[337091592,1725420686050,-500.0,0.00030136,2]
[337091593,1725420686063,-500.0,0.00030136,2]
[337091594,1725420686075,-500.0,0.00030136,2]
[337091595,1725420686087,-475.00127898,0.00030136,2]
[337091596,1725420686099,-500.0,0.00030136,2]
[337091597,1725420686111,-500.0,0.00030136,2]
[337091598,1725420686124,-500.0,0.00030136,2]
[337091599,1725420686137,-500.0,0.00030136,2]
[337091600,1725420686319,-500.0,0.00030136,2]
[337091601,1725420686335,-768.18,0.00030136,2]
[337091602,1725420686344,-427.3975696,0.00030136,2]
[337091603,1725420686353,-500.0,0.00030136,2]
[337091604,1725420686362,-507.45493288,0.00030136,2]
[337091605,1725420686371,-500.0,0.00030136,2]
[337091606,1725420686381,-500.0,0.00030136,2]
[337091607,1725420686391,-500.0,0.00030136,2]
[337091608,1725420686401,-500.0,0.00030136,2]
[337091609,1725420686410,-1082.29,0.00030136,2]
[337091610,1725420686419,-686.25,0.00030136,2]
[337091611,1725420686428,-680.2,0.00030136,2]
[337091612,1725420686438,-500.0,0.00030136,2]
[337091613,1725420686447,-500.0,0.00030136,2]
[337091614,1725420686456,-1000.0,0.00030136,60]
[337091615,1725420686466,-592.32,0.00030136,2]
[337091616,1725420686475,-500.0,0.00030136,2]
[337091617,1725420686484,-500.0,0.00030136,2]
[337091618,1725420686494,-674.32,0.00030136,2]
[337091619,1725420686503,-4019.26,0.00030136,2]
[337091620,1725420686513,-675.84,0.00030136,2]
[337091621,1725420686523,-500.0,0.00030136,2]
[337091622,1725420686532,-500.0,0.00030136,2]
[337091623,1725420686543,-500.0,0.00030136,2]
[337091624,1725420686554,-754.15,0.00030136,2]
[337091625,1725420686565,-500.0,0.00030136,2]
[337091626,1725420686575,-609.64,0.00030136,2]
[337091627,1725420686584,-500.0,0.00030136,2]
[337091628,1725420686595,-654.89,0.00030136,2]
[337091629,1725420686607,-500.0,0.00030136,2]
[337091630,1725420686619,-500.0,0.00030136,2]
[337091631,1725420686629,-511.88,0.00030136,2]
[337091632,1725420686640,-500.0,0.00030136,2]
[337091633,1725420686651,-500.0,0.00030136,2]
[337091634,1725420686661,-500.0,0.00030136,2]
[337091635,1725420686672,-500.0,0.00030136,2]
[337091636,1725420686682,-328.43712053,0.00030136,2]
[337091637,1725420686694,-731.93,0.00030136,2]
[337091638,1725420686706,-500.0,0.00030136,2]
[337091639,1725420686716,-555.67,0.00030136,2]
[337091640,1725420686728,-534.31,0.00030136,2]
[337091641,1725420686740,-2911.16,0.00030136,2]
[337091642,1725420686749,-500.0,0.00030136,2]
[337091643,1725420686759,-500.0,0.00030136,2]
[337091644,1725420686768,-500.0,0.00030136,2]
[337091645,1725420686779,-500.0,0.00030136,2]
[337091646,1725420686790,-500.0,0.00030136,2]
[337091647,1725420686801,-500.0,0.00030136,2]
[337091648,1725420686811,-564.87918395,0.00030136,2]
[337091649,1725420686822,-500.0,0.00030136,2]
[337091650,1725420686832,-1427.1,0.00030136,2]
[337091651,1725420686843,-500.0,0.00030136,2]
[337091652,1725420686855,-500.0,0.00030136,2]
[337091653,1725420686865,-500.0,0.00030136,2]
[337091654,1725420686875,-517.0099714,0.00030136,2]
[337091655,1725420686885,-500.0,0.00030136,2]
[337091656,1725420686897,-881.16,0.00030136,2]
[337091657,1725420686907,-500.0,0.00030136,2]
[337091658,1725420686916,-500.0,0.00030136,2]
[337091659,1725420686926,-706.4,0.00030136,2]
[337091660,1725420686936,-524.63,0.00030136,2]
[337091661,1725420686945,-500.0,0.00030136,2]
[337091662,1725420686955,-500.0,0.00030136,2]
[337091663,1725420686965,-500.0,0.00030136,2]
[337091664,1725420686974,-500.0,0.00030136,2]
[337091665,1725420686983,-500.0,0.00030136,2]
[337091666,1725420686993,-500.0,0.00030136,2]
[337091667,1725420687002,-500.0,0.00030136,2]
[337091668,1725420687012,-500.0,0.00030136,2]
[337091669,1725420687022,-2009.2,0.00030136,2]
[337091670,1725420687032,-695.98,0.00030136,2]
[337091671,1725420687043,-500.0,0.00030136,2]
[337091672,1725420687053,-896.76,0.00030136,2]
[337091673,1725420687063,-500.0,0.00030136,2]
[337091674,1725420687074,-1155.59,0.00030136,2]
[337091675,1725420687086,-500.0,0.00030136,2]
[337091676,1725420687097,-592.51,0.00030136,2]
[337091677,1725420687107,-791.9,0.00030136,2]
[337091678,1725420687117,-547.68,0.00030136,2]
[337091679,1725420687128,-500.0,0.00030136,2]
[337091680,1725420687139,-500.0,0.00030136,2]
[337091681,1725420687149,-500.0,0.00030136,2]
[337091682,1725420687159,-500.0,0.00030136,2]
[337091683,1725420687171,-500.0,0.00030136,2]
[337091684,1725420687181,-642.42,0.00030136,2]
[337091685,1725420687193,-500.0,0.00030136,2]
[337091686,1725420687204,-1249.32,0.00030136,2]
[337091687,1725420687215,-500.0,0.00030136,2]
[337091688,1725420687226,-500.0,0.00030136,2]
[337091689,1725420687238,-500.0,0.00030136,2]
[337091690,1725420687248,-500.0,0.00030136,2]
[337091691,1725420687258,-2356.93,0.00030136,2]
[337091692,1725420687267,-500.0,0.00030136,2]
[337091693,1725420687276,-224.4567178,0.00030136,2]
[337091694,1725420687286,-191.26162116,0.00030136,2]
[337091695,1725420687298,-834.19,0.00030136,2]
[337091696,1725420687310,-500.0,0.00030136,2]
[337091697,1725420687321,-516.57498037,0.00030136,2]
[337091698,1725420687333,-500.0,0.00030136,2]
[337091699,1725420687346,-291.45688122,0.00030136,2]
[337091700,1725420687358,-958.5,0.00030136,2]
[337091701,1725420687370,-832.71,0.00030136,2]
[337091702,1725420687383,-500.0,0.00030136,2]
[337091703,1725420687395,-652.3,0.00030136,2]
[337091704,1725420687406,-500.0,0.00030136,2]
[337091705,1725420687418,-901.33,0.00030136,2]
[337091706,1725420687431,-500.0,0.00030136,2]
[337091707,1725420687443,-1011.35,0.00030136,2]
[337091708,1725420687455,-2862.9,0.00030136,2]
[337091709,1725420687464,-2987.56,0.00030136,2]
[337091710,1725420687474,-500.0,0.00030136,2]
[337091711,1725420687486,-500.0,0.00030136,2]
[337091712,1725420687497,-3402.81,0.00030136,2]
[337091713,1725420687508,-1811.33,0.00030136,2]
[337091714,1725420687518,-500.0,0.00030136,2]
[337091715,1725420687536,-500.0,0.00030136,2]
[337091716,1725420687545,-612.22,0.00030136,2]
[337091717,1725420687554,-1243.1,0.00030136,2]
[337091718,1725420687563,-717.23,0.00030136,2]
[337091719,1725420687573,-4418.31,0.00030136,2]
[337091720,1725420687582,-500.0,0.00030136,2]
[337091721,1725420687591,-115684.14,0.00030136,2]
[337091722,1725420687601,-55826.22,0.00030136,2]
[337091723,1725420687610,-500.0,0.00030136,2]
[337091724,1725420687620,-335.64260759,0.00030136,2]
[337091725,1725420687630,-500.0,0.00030136,2]
[337091726,1725420687639,-500.0,0.00030136,2]
[337091727,1725420687648,-500.0,0.00030136,2]
[337091728,1725420687657,-6301.07,0.00030136,2]
[337091729,1725420687666,-26324.52,0.00030136,2]
[337091730,1725420687678,-636.47,0.00030136,2]
[337091731,1725420687688,-500.0,0.00030136,2]
[337091732,1725420687698,-1916.51,0.00030136,2]
[337091733,1725420687708,-500.0,0.00030136,2]
[337091734,1725420687717,-500.0,0.00030136,2]
[337091735,1725420687726,-823.36,0.00030136,2]
[337091736,1725420687737,-1701.17,0.00030136,2]
[337091737,1725420687747,-729.84,0.00030136,2]
[337091738,1725420687757,-500.0,0.00030136,2]
[337091739,1725420687766,-500.0,0.00030136,2]
[337091740,1725420687777,-712.75,0.00030136,2]
[337091741,1725420687787,-500.0,0.00030136,2]
[337091742,1725420687796,-500.0,0.00030136,2]
[337091743,1725420687805,-500.0,0.00030136,2]
[337091744,1725420687815,-1160.46,0.00030136,2]
[337091745,1725420687824,-1329.1,0.00030136,2]
[337091746,1725420687834,-2729.74,0.00030136,2]
[337091747,1725420687844,-500.0,0.00030136,2]
[337091748,1725420687853,-1898.01,0.00030136,2]
[337091749,1725420687863,-500.0,0.00030136,2]
[337091750,1725420687872,-500.0,0.00030136,2]
[337091751,1725420687884,-2159.38,0.00030136,2]
[337091752,1725420687895,-1592.01,0.00030136,2]
[337091753,1725420687905,-518.54447405,0.00030136,2]
[337091754,1725420687916,-6188.78,0.00030136,2]
[337091755,1725420687926,-1529.25,0.00030136,2]
[337091756,1725420687937,-4210.31,0.00030136,2]
[337091757,1725420687947,-729.82,0.00030136,2]
[337091758,1725420687959,-10461.88,0.00030136,2]
[337091759,1725420687968,-500.0,0.00030136,2]
[337091760,1725420687978,-1280.26,0.00030136,2]
[337091761,1725420687988,-1560.58,0.00030136,2]
[337091762,1725420688000,-7136.97,0.00030136,2]
[337091763,1725420688011,-500.0,0.00030136,2]
[337091764,1725420688022,-1328.68,0.00030136,2]
[337091765,1725420688032,-929.51,0.00030136,2]
[337091766,1725420688042,-3077.96,0.00030136,2]
[337091767,1725420688052,-683.0,0.00030136,2]
[337091768,1725420688061,-500.0,0.00030136,2]
[337091769,1725420688070,-11939.04,0.00030136,2]
[337091770,1725420688082,-500.0,0.00030136,2]
[337091771,1725420688094,-1259.14,0.00030136,2]
[337091772,1725420688106,-13600.34,0.00030136,2]
[337091773,1725420688116,-1182.99,0.00030136,2]
[337091774,1725420688127,-500.0,0.00030136,2]
[337091775,1725420688138,-1155.31,0.00030136,2]
[337091776,1725420688148,-851.0,0.00030136,2]
[337091777,1725420688159,-500.0,0.00030136,2]
[337091778,1725420688170,-1763.89,0.00030136,2]
[337091779,1725420688180,-756.04,0.00030136,2]
[337091780,1725420688191,-500.0,0.00030136,2]
[337091781,1725420688201,-652.71,0.00030136,2]
[337091782,1725420688212,-647.88,0.00030136,2]
[337091783,1725420688222,-4853.04,0.00030136,2]
[337091784,1725420688232,-963.22,0.00030136,2]
[337091785,1725420688244,-641.85898934,0.00030136,2]
[337091786,1725420688257,-1079.72,0.00030136,2]
[337091787,1725420688267,-500.0,0.00030136,2]
[337091788,1725420688278,-500.0,0.00030136,2]
[337091789,1725420688290,-529.99192648,0.00030136,2]
[337091790,1725420688300,-803.37,0.00030136,2]
[337091791,1725420688309,-500.0,0.00030136,2]
[337091792,1725420688318,-500.0,0.00030136,2]
[337091793,1725420688331,-606.86,0.00030136,2]
[337091794,1725420688343,-500.0,0.00030136,2]
[337091795,1725420688354,-500.0,0.00030136,2]
[337091796,1725420688366,-1132.32,0.00030136,2]
[337091797,1725420688376,-636.94,0.00030136,2]
[337091798,1725420688386,-500.0,0.00030136,2]